bitfinex-derivatives/quotes_SOLF0:USTF0_20241105
["timestamp","ask_amount","ask_price","bid_price","bid_amount"]
[1730839848322,2.9992,166.72,166.66,3.0002]
[1730839848524,2.9992,166.72,166.63,11.5226345]
[1730839848721,3.9552,166.74,166.63,11.5226345]
[1730839849124,2.9995,166.7,166.66,3.0002]
[1730839850232,2.9995,166.7,166.63,11.5226345]
[1730839850424,2.9995,166.7,166.67,3.0]
[1730839851026,2.9993,166.71,166.67,3.0]
[1730839851929,2.9994,166.71,166.65,3.0003]
[1730839852230,11.5226345,166.67,166.56,14.1541345]
[1730839852632,3.0009,166.63,166.58,3.0015]
[1730839852827,3.0009,166.63,166.56,14.1541345]
[1730839853334,3.001,166.62,166.56,2.6315]
[1730839854029,3.0008,166.63,166.58,3.0015]
[1730839854224,3.0008,166.63,166.56,2.6315]
[1730839854428,3.9558,166.66,166.56,2.6315]
[1730839854831,3.0011,166.61,166.57,3.0018]
[1730839855126,3.0011,166.61,166.56,2.6315]
[1730839855331,3.9558,166.66,166.56,1.2723]
[1730839855534,11.5226345,166.65,166.56,1.2723]
[1730839855733,15.2226345,166.65,166.55,3.7]
[1730839855934,3.0014,166.6,166.55,3.0021]
[1730839856133,11.5226345,166.63,166.53,3.7]
[1730839856542,3.0016,166.59,166.54,3.0023]
[1730839856738,11.5226345,166.63,166.52,12.7940345]
[1730839857242,3.0018,166.58,166.53,3.0025]
[1730839857440,11.5226345,166.63,166.52,12.7940345]
[1730839857840,3.0019,166.57,166.54,3.0024]
[1730839858037,3.0019,166.57,166.52,12.7940345]
[1730839859040,3.0019,166.57,166.53,3.0025]
[1730839859340,3.7,166.64,166.52,12.7940345]
[1730839859540,3.9558,166.66,166.52,12.7940345]
[1730839859541,3.9558,166.66,166.54,11.5226345]
[1730839859843,3.0007,166.64,166.54,11.5226345]
[1730839860437,3.0007,166.64,166.6,3.0011]
[1730839860634,3.9558,166.66,166.56,11.5226345]
[1730839860635,3.0004,166.65,166.56,15.2226345]
[1730839860938,3.0004,166.65,166.59,11.5226345]
[1730839861139,3.7,166.69,166.63,3.0006]
[1730839861436,11.5226345,166.7,166.59,11.5226345]
[1730839861943,3.0002,166.66,166.62,3.0009]
[1730839863845,3.0005,166.65,166.58,11.5226345]
[1730839864048,11.5226345,166.68,166.57,1.2747]
[1730839864345,3.0009,166.63,166.59,3.0014]
[1730839865335,11.5226345,166.68,166.56,15.2226345]
[1730839865540,11.5226345,166.7,166.58,11.5226345]
[1730839866040,3.0001,166.67,166.62,3.0008]
[1730839866242,11.5226345,166.7,166.59,1.2776]
[1730839867943,3.0001,166.67,166.62,3.0008]
[1730839868242,11.5226345,166.7,166.62,3.0008]
[1730839868447,11.5226345,166.7,166.59,1.2776]
[1730839868651,11.5226345,166.7,166.63,3.0007]
[1730839868947,11.5226345,166.7,166.59,1.2776]
[1730839869140,11.5226345,166.7,166.6,1.3714]
[1730839869749,3.0003,166.66,166.62,3.0008]
[1730839869940,3.0003,166.66,166.6,1.3714]
[1730839870348,3.0003,166.66,166.62,3.0008]
[1730839870845,11.5226345,166.68,166.56,15.2226345]
[1730839871248,11.5226345,166.66,166.54,14.2682345]
[1730839871438,11.5226345,166.66,166.55,3.7]
[1730839871439,3.0012,166.61,166.55,3.7]
[1730839871643,15.2226345,166.66,166.55,3.7]
[1730839872043,3.0012,166.61,166.57,3.0017]
[1730839872449,11.5226345,166.64,166.55,3.7]
[1730839872842,14.1880345,166.64,166.55,3.7]
[1730839873047,3.0015,166.59,166.55,6.7021]
[1730839873248,14.1880345,166.64,166.55,3.7]
[1730839874149,3.0013,166.6,166.57,3.0018]
[1730839874456,3.0013,166.6,166.55,3.7]
[1730839875353,3.0013,166.6,166.56,3.002]
[1730839875548,14.1880345,166.64,166.55,3.7]
[1730839875857,3.001,166.62,166.55,3.7]
[1730839876151,14.1880345,166.64,166.58,3.0016]
[1730839876355,3.0011,166.61,166.58,3.0016]
[1730839876544,3.0011,166.61,166.55,3.7]
[1730839876749,3.0011,166.61,166.57,3.0018]
[1730839877265,14.1880345,166.64,166.57,3.0018]
[1730839877851,3.0013,166.61,166.57,3.0018]
[1730839878767,1.3425,166.65,166.53,3.7]
[1730839878768,3.0005,166.65,166.6,3.0011]
[1730839879051,15.2226345,166.68,166.56,11.5226345]
[1730839879857,11.5226345,166.68,166.56,11.5226345]
[1730839880054,14.1399345,166.7,166.59,11.5226345]
[1730839880254,3.7,166.69,166.59,11.5226345]
[1730839880455,3.0002,166.67,166.62,3.0009]
[1730839881061,3.0002,166.67,166.63,3.0008]
[1730839881460,3.7,166.69,166.63,3.0008]
[1730839882462,3.0003,166.66,166.63,3.0008]
[1730839883062,3.0005,166.65,166.62,3.0009]
[1730839883366,3.7,166.69,166.58,3.7]
[1730839883864,3.0003,166.66,166.58,3.7]
[1730839884251,3.0003,166.66,166.62,3.0008]
[1730839885359,3.0004,166.65,166.61,3.001]
[1730839885855,11.5226345,166.68,166.58,3.7]
[1730839886763,3.0003,166.66,166.62,3.0008]
[1730839891366,14.1399345,166.7,166.6,11.5226345]
[1730839891560,1.2795,166.71,166.6,11.5226345]
[1730839891867,3.0004,166.65,166.61,3.001]
[1730839892070,11.5226345,166.66,166.57,2.5721]
[1730839892768,3.0011,166.62,166.57,5.5739]
[1730839892968,11.5226345,166.64,166.53,11.5226345]
[1730839893170,3.0015,166.6,166.55,3.0022]
[1730839893469,11.5226345,166.62,166.52,3.7]
[1730839893664,3.0015,166.59,166.55,3.0022]
[1730839894263,11.5226345,166.62,166.52,3.7]
[1730839894458,11.5226345,166.62,166.56,3.002]
[1730839894963,3.0011,166.61,166.53,11.5226345]
[1730839895164,3.7,166.63,166.55,11.5226345]
[1730839895658,15.2226345,166.67,166.57,11.5226345]
[1730839895864,3.7,166.67,166.62,3.0008]
[1730839896267,3.0003,166.66,166.62,3.0008]
[1730839896577,3.7,166.67,166.62,3.0008]
[1730839897169,3.0004,166.66,166.62,3.0008]
[1730839898068,3.0002,166.67,166.61,3.001]
[1730839898271,1.3138,166.68,166.6,3.7]
[1730839898763,3.0,166.68,166.64,3.0006]
[1730839899270,1.2845,166.7,166.64,3.0006]
[1730839899464,3.0001,166.67,166.64,3.0006]
[1730839899868,2.9997,166.69,166.65,3.0002]
[1730839900072,2.9997,166.69,166.62,11.5226345]
[1730839900970,2.9997,166.69,166.65,3.0003]
[1730839902373,2.9997,166.69,166.66,3.0002]
[1730839902574,11.5226345,166.73,166.66,3.0002]
[1730839902575,2.9996,166.7,166.66,3.0002]
[1730839902778,11.5226345,166.73,166.62,11.5226345]
[1730839902971,2.9997,166.69,166.65,3.0003]
[1730839906774,2.9999,166.68,166.65,3.0003]
[1730839907870,2.9998,166.69,166.65,3.0003]
[1730839908070,11.5226345,166.73,166.62,11.5226345]
[1730839908265,11.5226345,166.73,166.64,11.5226345]
[1730839908473,2.9992,166.72,166.65,3.68]
[1730839908674,2.9992,166.72,166.65,4.9558]
[1730839909377,2.9992,166.72,166.67,3.0]
[1730839909874,11.7943645,166.76,166.71,2.9992]
[1730839909875,0.27173,166.76,166.71,2.9992]
[1730839910177,0.27173,166.76,166.68,11.5226345]
[1730839910377,11.7943645,166.76,166.66,12.7857345]
[1730839910578,1.3131,166.75,166.67,3.0]
[1730839911078,1.3131,166.75,166.66,1.2631]
[1730839911275,11.5226345,166.74,166.64,15.2026345]
[1730839911674,2.9996,166.7,166.64,15.2026345]
[1730839912079,2.9996,166.7,166.66,3.0002]
[1730839912579,2.9997,166.69,166.65,3.0003]
[1730839912776,11.5226345,166.74,166.65,3.0003]
[1730839912975,11.5226345,166.74,166.62,15.2026345]
[1730839913275,3.0004,166.66,166.62,3.0009]
[1730839914170,3.0,166.68,166.63,3.0006]
[1730839914378,11.5226345,166.71,166.63,3.0006]
[1730839915075,3.0001,166.67,166.63,3.0006]
[1730839915480,11.5226345,166.71,166.61,3.68]
[1730839915673,3.0006,166.64,166.61,3.68]
[1730839915978,3.0006,166.64,166.59,3.68]
[1730839916178,3.0004,166.65,166.59,3.68]
[1730839916575,3.0004,166.65,166.61,3.001]
[1730839917077,3.0004,166.65,166.62,3.0009]
[1730839917983,1.3195,166.68,166.6,11.5226345]
[1730839918674,3.0004,166.66,166.62,3.0009]
[1730839920984,4.3195,166.68,166.64,3.0005]
[1730839921184,1.3195,166.68,166.58,11.5226345]
[1730839921377,1.3195,166.68,166.58,15.2026345]
[1730839921575,3.0008,166.63,166.59,3.0013]
[1730839921882,11.5226345,166.66,166.56,5.0242]
[1730839922078,3.001,166.62,166.58,3.0016]
[1730839922681,3.0011,166.61,166.57,3.0018]
[1730839923083,11.5226345,166.66,166.57,3.0018]
[1730839923286,3.001,166.62,166.57,3.0018]
[1730839923782,3.0004,166.65,166.61,3.001]
[1730839924083,1.3195,166.68,166.58,11.5226345]
[1730839924288,1.3195,166.68,166.61,3.001]
[1730839924481,1.3195,166.68,166.58,11.5226345]
[1730839924782,3.0005,166.65,166.6,3.0012]
[1730839924982,1.3195,166.68,166.58,11.5226345]
[1730839925387,2.9997,166.69,166.65,3.0004]
[1730839925886,2.9994,166.71,166.67,3.0]
[1730839926077,2.9994,166.71,166.63,11.5226345]
[1730839926481,2.9988,166.74,166.67,11.5226345]
[1730839926685,17.8591345,166.78,166.67,15.2026345]
[1730839927486,2.9987,166.75,166.7,2.9994]
[1730839927680,2.9987,166.75,166.67,15.2026345]
[1730839927888,6.3365,166.78,166.67,15.2026345]
[1730839928088,2.9986,166.76,166.7,11.5226345]
[1730839928283,2.6565,166.78,166.7,11.5226345]
[1730839928790,2.9985,166.76,166.72,2.999]
[1730839928981,11.5226345,166.8,166.7,11.5226345]
[1730839930184,4.3564,166.81,166.76,2.9983]
[1730839930586,1.3588,166.81,166.76,2.9983]
[1730839930784,2.9979,166.79,166.75,2.9986]
[1730839930990,1.3588,166.81,166.73,3.68]
[1730839931486,1.3588,166.81,166.76,2.9983]
[1730839932187,2.9979,166.8,166.76,2.9983]
[1730839932589,3.30189,166.8,166.76,2.9983]
[1730839933591,0.30399,166.8,166.77,2.9981]
[1730839933779,0.30399,166.8,166.73,3.68]
[1730839934293,11.8266245,166.8,166.7,1.3788]
[1730839934591,2.999,166.73,166.69,6.6796]
[1730839934790,11.5226345,166.75,166.69,3.68]
[1730839935192,2.9989,166.74,166.69,3.68]
[1730839935388,11.5226345,166.75,166.69,3.68]
[1730839935987,1.2958,166.78,166.71,2.9992]
[1730839935988,2.9984,166.77,166.71,2.9992]
[1730839936190,1.2958,166.78,166.69,3.68]
[1730839936595,2.9991,166.73,166.69,3.68]
[1730839937896,2.9991,166.73,166.69,6.6797]
[1730839938990,0.30399,166.8,166.69,3.68]
[1730839939190,0.30399,166.8,166.72,2.9991]
[1730839939590,2.9984,166.77,166.72,2.9991]
[1730839939786,2.9984,166.77,166.73,2.9989]
[1730839939986,2.9984,166.77,166.7,11.5226345]
[1730839940192,0.30399,166.8,166.7,11.5226345]
[1730839940389,2.9986,166.76,166.72,2.9991]
[1730839940596,2.9986,166.76,166.69,3.68]
[1730839940597,11.5226345,166.75,166.67,3.68]
[1730839940790,12.7959345,166.75,166.67,3.68]
[1730839941398,2.9992,166.72,166.67,6.6799]
[1730839941994,2.9987,166.75,166.7,2.9994]
[1730839942192,1.2647,166.78,166.68,11.5226345]
[1730839943893,11.8266245,166.8,166.68,11.5226345]
[1730839944092,11.8266245,166.8,166.7,11.5226345]
[1730839944093,0.30399,166.8,166.7,11.5226345]
[1730839944293,0.30399,166.8,166.71,2.6899]
[1730839944493,2.998,166.79,166.75,2.9986]
[1730839944693,2.998,166.79,166.72,3.68]
[1730839944902,0.30399,166.8,166.72,3.68]
[1730839944903,0.30399,166.8,166.73,11.5226345]
[1730839945102,0.30399,166.8,166.75,2.9986]
[1730839945103,2.9979,166.79,166.75,2.9986]
[1730839945694,2.9977,166.8,166.75,2.9986]
[1730839946194,2.9976,166.81,166.77,2.9982]
[1730839946600,1.2601,166.84,166.73,11.5226345]
[1730839947698,2.9978,166.8,166.73,11.5226345]
[1730839947899,1.2601,166.84,166.73,11.5226345]
[1730839948105,2.9975,166.82,166.77,2.9981]
[1730839948302,1.2601,166.84,166.73,11.5226345]
[1730839948798,2.9974,166.82,166.77,2.9981]
[1730839950001,1.2601,166.84,166.79,2.9978]
[1730839950597,1.2601,166.84,166.75,11.5226345]
[1730839950598,1.2601,166.84,166.72,4.951]
[1730839951500,2.9977,166.8,166.76,2.9983]
[1730839952005,6.2141,166.87,166.72,4.951]
[1730839952206,11.5226345,166.85,166.73,11.5226345]
[1730839953203,2.9977,166.81,166.76,2.9983]
[1730839953504,15.2026345,166.85,166.73,11.5226345]
[1730839953704,11.5226345,166.82,166.73,3.68]
[1730839953901,11.5226345,166.82,166.73,6.6789]
[1730839954304,2.9982,166.78,166.73,6.6789]
[1730839955108,2.9976,166.81,166.76,2.9983]
[1730839955702,2.9978,166.8,166.76,2.9983]
[1730839956005,15.2026345,166.85,166.75,2.9986]
[1730839956203,11.5226345,166.82,166.73,3.68]
[1730839956508,11.5226345,166.8,166.72,6.6791]
[1730839956702,1.387,166.79,166.72,6.6791]
[1730839957402,11.5226345,166.78,166.72,3.68]
[1730839957609,2.6704,166.79,166.72,3.68]
[1730839957802,2.9986,166.75,166.72,6.6791]
[1730839959821,2.9986,166.75,166.72,2.9991]
[1730839960423,2.9986,166.75,166.69,15.2026345]
[1730839960619,2.9986,166.75,166.71,2.9993]
[1730839962725,4.0353,166.79,166.71,2.9993]
[1730839962913,2.9988,166.74,166.7,2.9994]
[1730839963524,2.9991,166.73,166.69,2.9996]
[1730839963820,11.5226345,166.76,166.67,3.68]
[1730839964322,11.5226345,166.76,166.65,12.8899345]
[1730839964523,2.9995,166.7,166.66,3.0002]
[1730839964725,11.5226345,166.76,166.65,11.5226345]
[1730839964726,3.68,166.75,166.65,11.5226345]
[1730839965725,2.9988,166.74,166.7,2.9994]
[1730839966029,15.2026345,166.78,166.68,11.5226345]
[1730839966228,4.0353,166.79,166.7,11.5226345]
[1730839966526,11.5226345,166.78,166.69,3.68]
[1730839966922,2.9987,166.75,166.7,2.9993]
[1730839967222,11.5226345,166.78,166.7,2.9993]
[1730839967824,4.0353,166.79,166.65,15.2026345]
[1730839967825,2.999,166.73,166.65,15.2026345]
[1730839968030,11.5226345,166.76,166.65,15.2026345]
[1730839968326,11.5226345,166.76,166.65,11.5226345]
[1730839969329,2.9993,166.71,166.67,2.9999]
[1730839970525,11.5226345,166.76,166.65,11.5226345]
[1730839970826,2.999,166.73,166.69,2.9997]
[1730839972523,2.9994,166.71,166.67,3.0]
[1730839972725,21.7,166.77,166.6,1.2741]
[1730839972921,11.5226345,166.71,166.6,4.9341]
[1730839973124,3.0004,166.66,166.62,3.0009]
[1730839973325,2.7107,166.7,166.6,4.9341]
[1730839973535,4.0024,166.7,166.6,4.9341]
[1730839973828,11.5226345,166.68,166.6,4.9341]
[1730839974027,11.5226345,166.68,166.58,4.9879]
[1730839974232,3.0007,166.64,166.59,3.0015]
[1730839974532,11.5226345,166.68,166.56,3.66]
[1730839975032,11.5226345,166.68,166.59,3.0014]
[1730839975626,3.0005,166.65,166.58,11.5226345]
[1730839976530,3.0005,166.65,166.6,3.0012]
[1730839976729,11.5226345,166.68,166.6,3.0012]
[1730839976730,3.0006,166.64,166.6,3.0012]
[1730839978735,3.0003,166.66,166.61,3.001]
[1730839978929,3.0003,166.66,166.58,11.5226345]
[1730839979839,3.0001,166.67,166.6,11.5226345]
[1730839980030,7.6624,166.7,166.6,11.5226345]
[1730839980734,3.0003,166.66,166.62,3.0008]
[1730839981427,3.0001,166.67,166.63,3.0007]
[1730839982038,2.9998,166.69,166.63,11.5226345]
[1730839982337,11.5226345,166.73,166.65,11.5226345]
[1730839982338,3.66,166.73,166.65,11.5226345]
[1730839982631,2.9996,166.7,166.67,2.9999]
[1730839982824,3.66,166.73,166.67,2.9999]
[1730839983027,3.66,166.73,166.68,2.9999]
[1730839983028,2.9994,166.71,166.68,2.9999]
[1730839983639,2.9994,166.71,166.67,2.9999]
[1730839984841,2.9991,166.73,166.69,2.9995]
[1730839985638,2.9991,166.73,166.7,2.9995]
[1730839985943,2.9993,166.71,166.66,3.66]
[1730839986334,0.23946,166.74,166.66,3.66]
[1730839986533,11.7620945,166.74,166.64,3.66]
[1730839986732,11.7620945,166.74,166.65,3.0004]
[1730839986946,2.9997,166.7,166.63,15.1826345]
[1730839987245,11.7620945,166.74,166.63,15.1826345]
[1730839987745,2.9994,166.71,166.63,15.1826345]
[1730839987943,11.7620945,166.74,166.65,3.0003]
[1730839988437,2.9998,166.69,166.65,3.0003]
[1730839988640,11.7620945,166.74,166.65,3.0003]
[1730839989048,2.9998,166.69,166.65,3.0003]
[1730839989336,11.7620945,166.74,166.65,3.0003]
[1730839989543,2.9999,166.68,166.65,3.0003]
[1730839989940,2.9997,166.69,166.65,3.0003]
[1730839992145,0.23946,166.74,166.65,11.5226345]
[1730839992337,0.23946,166.74,166.67,11.5226345]
[1730839992746,2.999,166.73,166.69,2.9996]
[1730839992937,2.999,166.73,166.67,11.5226345]
[1730839994338,0.23946,166.74,166.68,3.66]
[1730839994944,0.23946,166.74,166.71,2.9993]
[1730839996638,2.9988,166.75,166.71,2.9993]
[1730839997444,2.9988,166.75,166.68,3.66]
[1730839997445,11.5226345,166.76,166.68,3.66]
[1730839998443,11.5226345,166.76,166.68,6.6598]
[1730839999741,11.5226345,166.76,166.68,3.66]
[1730839999940,11.5226345,166.76,166.69,2.9997]
[1730840000542,11.5226345,166.76,166.7,2.9994]
[1730840000749,11.5226345,166.76,166.68,3.66]
[1730840001045,2.999,166.74,166.7,2.9994]
[1730840001643,2.9986,166.76,166.72,2.999]
[1730840001843,16.4502345,166.79,166.72,2.999]
[1730840002045,16.4502345,166.79,166.68,15.1826345]
[1730840002442,2.9986,166.75,166.72,2.9991]
[1730840002646,16.4502345,166.79,166.68,15.1826345]
[1730840002844,2.9987,166.75,166.71,2.9993]
[1730840003251,16.4502345,166.79,166.71,2.9993]
[1730840003450,2.9985,166.76,166.7,2.9994]
[1730840003648,16.4502345,166.79,166.7,2.9994]
[1730840003843,11.5226345,166.77,166.7,2.9994]
[1730840004042,2.9988,166.74,166.7,2.9994]
[1730840004249,2.9988,166.74,166.69,2.9995]
[1730840004447,2.9988,166.74,166.68,15.1826345]
[1730840006446,2.9988,166.74,166.7,2.9993]
[1730840007845,16.4502345,166.79,166.71,2.9992]
[1730840008048,16.4502345,166.79,166.68,15.1826345]
[1730840008441,11.5226345,166.77,166.68,3.66]
[1730840008648,11.5226345,166.74,166.66,3.66]
[1730840009052,11.5226345,166.74,166.66,6.6601]
[1730840009249,11.5226345,166.74,166.66,3.66]
[1730840009554,2.9995,166.71,166.67,2.9999]
[1730840010244,2.9996,166.7,166.66,3.0002]
[1730840010944,2.9994,166.71,166.67,3.0]
[1730840012148,2.9994,166.71,166.68,2.9998]
[1730840012357,1.2683,166.76,166.65,15.1826345]
[1730840012652,7.98715379,166.79,166.71,11.5226345]
[1730840012653,1.2676,166.79,166.71,11.5226345]
[1730840012950,2.9986,166.76,166.71,3.66]
[1730840013350,2.9981,166.78,166.73,2.9989]
[1730840013548,2.9981,166.78,166.71,3.66]
[1730840013948,2.9981,166.78,166.73,2.9989]
[1730840014351,2.998,166.79,166.74,2.9986]
[1730840015156,2.9981,166.78,166.73,2.9989]
[1730840016559,2.9982,166.77,166.73,2.9989]
[1730840019661,2.9983,166.77,166.72,3.66]
[1730840019855,11.5226345,166.79,166.72,3.66]
[1730840020461,2.9983,166.77,166.72,6.659]
[1730840020759,2.9983,166.77,166.72,3.66]
[1730840020956,2.9983,166.77,166.73,2.9989]
[1730840021359,2.9986,166.75,166.67,1.271]
[1730840021561,2.9986,166.75,166.68,3.66]
[1730840021863,2.9986,166.75,166.68,15.1826345]
[1730840022253,2.9985,166.76,166.68,3.66]
[1730840022452,11.5226345,166.79,166.68,15.1826345]
[1730840023161,2.9985,166.76,166.71,2.9993]
[1730840023458,11.5226345,166.79,166.71,2.9993]
[1730840023649,11.5226345,166.77,166.68,3.66]
[1730840024055,2.9987,166.75,166.69,2.9997]
[1730840024262,11.5226345,166.77,166.69,2.9997]
[1730840024471,11.5226345,166.77,166.68,3.66]
[1730840024760,2.9986,166.75,166.71,2.9992]
[1730840026766,2.9988,166.74,166.71,2.9992]
[1730840027968,2.9988,166.74,166.69,3.66]
[1730840028161,2.9993,166.72,166.68,2.9997]
[1730840028361,11.5226345,166.77,166.68,3.64]
[1730840028664,2.5712,166.76,166.68,3.64]
[1730840028865,2.5712,166.76,166.68,6.6398]
[1730840029670,2.9993,166.72,166.68,6.6398]
[1730840031479,12.7755345,166.75,166.66,3.0001]
[1730840032173,2.9996,166.7,166.66,3.0001]
[1730840033267,2.9996,166.7,166.67,3.0]
[1730840035375,12.7755345,166.75,166.67,3.0]
[1730840035376,2.9993,166.71,166.67,3.0]
[1730840037877,1.2529,166.75,166.66,11.5226345]
[1730840038078,2.9992,166.72,166.68,2.9998]
[1730840038866,1.2529,166.75,166.66,11.5226345]
[1730840039066,2.5712,166.76,166.65,3.64]
[1730840039267,2.5712,166.76,166.68,11.5226345]
[1730840039583,12.63087034,166.8,166.7,11.5226345]
[1730840039773,1.3354,166.8,166.71,3.64]
[1730840039968,2.9984,166.77,166.73,2.9988]
[1730840040373,2.9986,166.76,166.71,6.6392]
[1730840040676,2.9986,166.76,166.71,3.64]
[1730840040887,11.5226345,166.79,166.71,3.64]
[1730840041078,2.9983,166.77,166.72,2.999]
[1730840041382,11.5226345,166.77,166.68,3.64]
[1730840041675,12.8580345,166.8,166.68,3.64]
[1730840041884,11.29335815,166.79,166.68,3.64]
[1730840042079,2.9986,166.75,166.68,3.64]
[1730840042284,11.29335815,166.79,166.68,3.64]
[1730840042675,2.9988,166.74,166.7,2.9994]
[1730840042978,11.5226345,166.77,166.7,2.9994]
[1730840043379,2.9987,166.75,166.7,2.9994]
[1730840045379,11.5226345,166.77,166.68,3.64]
[1730840045579,11.5226345,166.77,166.68,6.6398]
[1730840045777,11.5226345,166.77,166.68,3.64]
[1730840045983,22.81658804,166.79,166.68,3.64]
[1730840046578,2.9987,166.75,166.68,3.64]
[1730840046885,11.5226345,166.79,166.68,3.64]
[1730840047084,2.9984,166.77,166.72,2.999]
[1730840047384,10.37158801,166.77,166.72,2.999]
[1730840047881,7.37318801,166.77,166.72,2.999]
[1730840048086,2.9985,166.76,166.72,2.999]
[1730840048277,1.3354,166.8,166.73,10.37198801]
[1730840048481,7.37318801,166.79,166.73,10.37198801]
[1730840048681,2.9984,166.77,166.73,10.37198801]
[1730840049873,2.9981,166.78,166.75,2.9986]
[1730840050477,2.9981,166.78,166.73,11.01318801]
[1730840050782,2.9981,166.78,166.74,2.9987]
[1730840051391,2.9983,166.77,166.73,14.01198801]
[1730840051872,8.70858801,166.8,166.73,11.01318801]
[1730840052077,7.37318801,166.78,166.73,11.01318801]
[1730840052685,2.9981,166.78,166.73,14.01218801]
[1730840053685,7.37318801,166.79,166.73,14.01218801]
[1730840053881,2.9983,166.77,166.73,14.01218801]
[1730840055191,7.37318801,166.79,166.73,11.01318801]
[1730840055392,7.37318801,166.74,166.68,3.64]
[1730840055788,2.9993,166.72,166.68,3.64]
[1730840056792,7.37318801,166.72,166.68,3.64]
[1730840058084,2.9995,166.71,166.68,3.64]
[1730840060498,7.37318801,166.74,166.68,3.64]
[1730840060691,2.9992,166.72,166.68,3.64]
[1730840060989,7.37318801,166.74,166.68,3.64]
[1730840061194,7.37318801,166.72,166.68,3.64]
[1730840061589,2.9995,166.71,166.67,10.37318801]
[1730840061790,7.37318801,166.71,166.65,11.01318801]
[1730840061985,3.0002,166.66,166.62,3.0008]
[1730840062193,3.0002,166.66,166.61,2.5547]
[1730840062394,3.0002,166.66,166.61,8.63998801]
[1730840062690,3.0002,166.66,166.53,1.2718]
[1730840062691,3.0008,166.63,166.58,3.64]
[1730840062895,1.292,166.7,166.58,3.64]
[1730840062896,1.292,166.7,166.58,7.37318801]
[1730840063090,1.292,166.7,166.57,3.64]
[1730840063091,1.292,166.7,166.62,7.37318801]
[1730840063289,7.37318801,166.67,166.62,7.37318801]
[1730840063499,12.81286487,166.7,166.61,3.001]
[1730840063995,3.0004,166.66,166.61,3.001]
[1730840064187,12.81286487,166.7,166.61,3.001]
[1730840064889,3.0,166.68,166.61,3.001]
[1730840065093,12.81286487,166.7,166.61,3.001]
[1730840065994,3.0,166.68,166.61,3.001]
[1730840066192,12.81286487,166.7,166.61,3.001]
[1730840066393,1.292,166.7,166.64,3.0005]
[1730840066593,2.9999,166.68,166.64,3.0005]
[1730840067398,1.292,166.7,166.65,3.0003]
[1730840067399,2.9997,166.69,166.65,3.0003]
[1730840069002,1.292,166.7,166.62,3.64]
[1730840069207,2.598,166.72,166.66,3.0002]
[1730840069702,2.598,166.72,166.65,3.0002]
[1730840069703,2.9997,166.69,166.65,3.0002]
[1730840069907,2.598,166.72,166.63,11.52086487]
[1730840070312,2.598,166.72,166.62,3.64]
[1730840070313,14.11886487,166.72,166.62,3.64]
[1730840070598,14.11886487,166.72,166.59,11.52086487]
[1730840070804,3.0003,166.66,166.62,3.0008]
[1730840070996,11.52086487,166.69,166.61,3.64]
[1730840071696,3.0002,166.67,166.63,3.0006]
[1730840071892,11.52086487,166.69,166.61,3.64]
[1730840072803,3.0006,166.64,166.61,3.64]
[1730840073401,3.0006,166.64,166.61,6.6411]
[1730840073706,11.52086487,166.69,166.61,6.6411]
[1730840073908,3.0004,166.65,166.61,6.6411]
[1730840076905,3.0004,166.65,166.62,3.0009]
[1730840077416,11.52086487,166.69,166.61,3.64]
[1730840077615,3.0002,166.67,166.63,3.0006]
[1730840078914,3.0002,166.67,166.63,3.0007]
[1730840079119,3.0002,166.66,166.63,3.0007]
[1730840079308,3.0002,166.66,166.61,11.52086487]
[1730840079924,11.52086487,166.7,166.63,3.0007]
[1730840079925,3.0001,166.67,166.63,3.0007]
[1730840080428,3.0001,166.67,166.6,3.64]
[1730840080429,11.52086487,166.66,166.54,2.6319]